bitfinex/quotes_SOLUSD_20240816
["timestamp","ask_amount","ask_price","bid_price","bid_amount"]
[1723783595445,10.61,142.33,142.31,17.5664]
[1723783595834,10.61,142.33,142.31,37.5664]
[1723783596248,10.61,142.33,142.32,7.0264]
[1723783598248,10.61,142.33,142.31,44.5931]
[1723783600281,10.61,142.33,142.31,17.5664]
[1723783600635,10.61,142.33,142.29,23.3578]
[1723783601261,0.12549,142.32,142.29,23.3578]
[1723783601676,7.0254,142.34,142.3,7.0273]
[1723783601847,10.61,142.34,142.32,7.0263]
[1723783602031,10.61,142.34,142.31,20.0]
[1723783602236,10.61,142.34,142.31,27.0267]
[1723783602457,0.12549,142.35,142.31,27.0267]
[1723783602657,10.61,142.34,142.31,27.0267]
[1723783602833,6.2286,142.38,142.32,17.5657]
[1723783603059,10.61,142.39,142.36,20.0]
[1723783603273,10.61,142.41,142.36,20.0]
[1723783603439,49.77930716,142.45,142.36,20.0]
[1723783603440,6.0855,142.46,142.4,7.0223]
[1723783603779,10.61,142.44,142.4,7.0223]
[1723783604079,10.61,142.45,142.41,7.0218]
[1723783604744,7.0195,142.46,142.41,7.0218]
[1723783604947,10.61,142.45,142.42,7.0213]
[1723783606249,17.6281,142.49,142.45,20.0]
[1723783606686,17.6281,142.49,142.44,7.0204]
[1723783606864,17.6281,142.49,142.43,45.40191517]
[1723783607052,23.8799,142.54,142.44,23.6056]
[1723783607053,7.0176,142.5,142.44,23.6056]
[1723783607256,17.627,142.51,142.47,20.0]
[1723783607991,17.627,142.51,142.46,7.0194]
[1723783608158,10.61,142.49,142.46,7.0194]
[1723783609951,33.67309,142.5,142.46,7.0194]
[1723783610862,33.67309,142.5,142.45,7.0199]
[1723783611271,7.0181,142.49,142.45,7.0199]
[1723783611493,26.65549,142.48,142.44,17.5505]
[1723783611653,0.12549,142.47,142.44,17.5505]
[1723783613154,7.26998,142.47,142.42,7.0211]
[1723783613394,0.12549,142.45,142.42,7.0211]
[1723783615303,0.12549,142.45,142.41,59.8124]
[1723783615462,0.12549,142.45,142.42,7.0213]
[1723783617906,0.12549,142.47,142.43,17.5518]
[1723783618095,0.12549,142.47,142.44,7.0204]
[1723783619909,0.12549,142.47,142.43,24.5726]
[1723783621110,0.25098,142.47,142.43,44.5726]
[1723783621683,7.27008,142.47,142.43,44.5726]
[1723783622002,7.27008,142.47,142.43,17.5518]
[1723783622521,7.27008,142.47,142.41,15.2364]
[1723783622522,0.12549,142.45,142.41,15.2364]
[1723783622700,26.53,142.46,142.43,7.0209]
[1723783623024,0.12549,142.47,142.44,27.0204]
[1723783623313,26.53,142.48,142.44,27.0204]
[1723783624129,0.12549,142.47,142.44,20.0]
[1723783624493,7.14449,142.47,142.43,7.0208]
[1723783625615,0.12549,142.47,142.43,7.0208]
[1723783625933,26.53,142.48,142.44,20.0]
[1723783626394,0.12549,142.48,142.44,20.0]
[1723783627099,0.12549,142.48,142.45,7.0199]
[1723783628608,7.14399,142.48,142.44,7.0204]
[1723783628802,33.79948,142.48,142.44,7.0204]
[1723783629010,26.53,142.46,142.42,17.5531]
[1723783629334,0.12549,142.45,142.42,24.5745]
[1723783629915,10.74549,142.45,142.42,24.5745]
[1723783630534,10.74549,142.45,142.42,17.5531]
[1723783630833,10.74549,142.45,142.42,24.5744]
[1723783631406,10.74549,142.45,142.41,15.2364]
[1723783631407,17.76559,142.45,142.41,22.2582]
[1723783633604,17.76559,142.45,142.41,15.2364]
[1723783633822,7.14729,142.42,142.37,16.6283]
[1723783634025,10.62,142.39,142.37,23.6519]
[1723783634303,10.62,142.39,142.36,24.5848]
[1723783634531,10.62,142.39,142.34,22.23]
[1723783634532,10.62,142.37,142.34,22.23]
[1723783635699,10.62,142.35,142.33,17.564]
[1723783635928,7.0244,142.36,142.33,17.564]
[1723783635929,26.58,142.36,142.33,17.564]
[1723783636525,26.58,142.36,142.33,24.5898]
[1723783637048,26.58,142.36,142.33,17.564]
[1723783637356,0.12549,142.35,142.33,17.564]
[1723783640720,26.58,142.36,142.33,24.5898]
[1723783641144,7.024,142.37,142.33,24.5898]
[1723783641759,0.12549,142.36,142.33,17.564]
[1723783641958,6.357,142.49,142.39,7.0225]
[1723783642117,26.58,142.45,142.38,20.0]
[1723783642323,26.58,142.45,142.4,7.0223]
[1723783642525,26.58,142.45,142.42,24.5745]
[1723783643548,26.58,142.47,142.42,24.5745]
[1723783643762,0.12549,142.46,142.39,62.5567]
[1723783643939,7.14599,142.44,142.39,24.5795]
[1723783644347,26.58,142.43,142.39,24.5795]
[1723783644524,0.12549,142.42,142.39,24.5795]
[1723783644724,0.12549,142.42,142.4,7.0223]
[1723783646031,0.12549,142.42,142.39,24.5794]
[1723783646240,0.12549,142.42,142.4,7.0224]
[1723783646660,0.25098,142.42,142.39,24.5795]
[1723783647982,0.12549,142.42,142.4,0.40352212]
[1723783648276,7.0195,142.46,142.42,7.0211]
[1723783649861,0.25098,142.45,142.42,7.0211]
[1723783650647,26.58,142.5,142.43,17.552]
[1723783650878,26.58,142.5,142.46,7.0195]
[1723783650879,20.0,142.49,142.46,7.0195]
[1723783651043,20.0,142.49,142.43,17.552]
[1723783651249,33.598,142.5,142.46,7.0194]
[1723783651451,7.018,142.5,142.46,7.0194]
[1723783651783,7.0171,142.51,142.46,7.0194]
[1723783653093,26.70549,142.5,142.46,7.0194]
[1723783653393,33.84848,142.5,142.45,24.5692]
[1723783654673,26.70549,142.48,142.44,7.0204]
[1723783663972,7.0181,142.49,142.44,7.0204]
[1723783663973,7.14359,142.49,142.45,7.0198]
[1723783664299,0.12549,142.48,142.45,7.0198]
[1723783667672,7.14399,142.48,142.44,24.5711]
[1723783667868,0.12549,142.47,142.44,24.5711]
[1723783670307,0.12549,142.45,142.41,33.6171]
[1723783670602,10.61,142.42,142.4,7.0223]
[1723783671101,0.12549,142.41,142.39,7.0228]
[1723783671664,0.12549,142.41,142.38,24.581]
[1723783672085,0.12549,142.41,142.39,7.0228]
[1723783672975,10.61,142.42,142.35,17.5614]
[1723783672976,0.12549,142.38,142.35,17.5614]
[1723783673172,10.61,142.37,142.35,17.5614]
[1723783673501,0.12549,142.36,142.34,7.0253]
[1723783673937,0.12549,142.37,142.34,7.0253]
[1723783674097,0.25098,142.37,142.34,7.0253]
[1723783674534,0.12549,142.38,142.34,7.0253]
[1723783674714,0.12549,142.38,142.36,7.0242]
[1723783675919,0.12549,142.39,142.36,7.0242]
[1723783679403,0.12549,142.39,142.35,7.0247]
[1723783680444,0.12549,142.36,142.33,15.2775]
[1723783680605,0.12549,142.38,142.34,7.0252]
[1723783680606,7.0234,142.38,142.34,7.0252]
[1723783680937,0.12549,142.37,142.34,7.0252]
[1723783682618,7.14959,142.37,142.33,24.5899]
[1723783682817,7.27508,142.37,142.33,24.5899]
[1723783683452,0.25098,142.37,142.34,7.0252]
[1723783683747,0.12549,142.37,142.34,7.0252]
[1723783687863,0.12549,142.37,142.33,24.5899]
[1723783688156,7.0241,142.37,142.33,24.5899]
[1723783688330,0.12549,142.36,142.33,24.5899]
[1723783690533,7.14989,142.36,142.32,7.0263]
[1723783690752,7.27538,142.36,142.32,7.0263]
[1723783693449,0.25098,142.36,142.32,7.0263]
[1723783693924,0.25098,142.36,142.34,7.0253]
[1723783694115,7.0235,142.38,142.34,20.0]
[1723783694116,0.12549,142.37,142.34,20.0]
[1723783694931,0.12549,142.37,142.33,24.5903]
[1723783695314,0.12549,142.38,142.33,17.5646]
[1723783695531,0.25098,142.38,142.35,7.0245]
[1723783695759,0.12549,142.38,142.35,7.0245]
[1723783695923,7.27418,142.39,142.35,7.0245]
[1723783696446,7.0221,142.41,142.35,17.5616]
[1723783696640,7.0221,142.41,142.36,7.0242]
[1723783697351,7.0221,142.41,142.37,7.0238]
[1723783697736,0.25098,142.4,142.37,7.0238]
[1723783699165,17.89348,142.4,142.36,7.0244]
[1723783699375,7.023,142.39,142.35,24.5864]
[1723783699575,17.76789,142.4,142.36,7.0243]
[1723783699875,0.12549,142.39,142.36,7.0243]
[1723783703170,7.0221,142.41,142.37,17.5595]
[1723783703171,0.12549,142.41,142.37,17.5595]
[1723783703351,0.25098,142.41,142.37,17.5595]
[1723783703546,7.0216,142.46,142.41,20.0]
[1723783703755,17.6398,142.46,142.4,0.40262669]
[1723783703952,17.6398,142.46,142.41,24.5763]
[1723783704173,7.02,142.45,142.41,24.5763]
[1723783704981,0.12549,142.44,142.41,24.5763]
[1723783706073,10.74549,142.44,142.41,24.5763]
[1723783709255,10.74549,142.44,142.41,44.5763]
[1723783709456,0.12549,142.45,142.41,44.5763]
[1723783709663,0.25098,142.45,142.41,44.5763]
[1723783710355,0.25098,142.45,142.41,24.5763]
[1723783710550,17.6396,142.46,142.42,27.021]
[1723783710551,10.62,142.46,142.42,27.021]
[1723783711412,17.6395,142.46,142.42,27.021]
[1723783711624,0.12549,142.45,142.42,27.021]
[1723783714387,10.62,142.46,142.43,7.0209]
[1723783714595,6.67859,142.47,142.43,7.0209]
[1723783714596,0.12549,142.47,142.44,20.0]
[1723783714806,20.25098,142.48,142.44,20.0]
[1723783715034,27.26978,142.48,142.44,27.0204]
[1723783715236,27.26978,142.48,142.43,17.5521]
[1723783715591,27.26978,142.48,142.43,24.5729]
[1723783716323,10.62,142.47,142.43,24.5729]
[1723783716495,17.639,142.47,142.43,24.5729]
[1723783716695,7.27048,142.46,142.43,17.5521]
[1723783717004,0.12549,142.44,142.42,7.0211]
[1723783717810,0.12549,142.42,142.4,17.5553]
[1723783718013,0.12549,142.42,142.4,24.5777]
[1723783719126,10.62,142.43,142.4,24.5777]
[1723783721828,0.12549,142.42,142.38,16.6097]
[1723783722030,0.12549,142.4,142.37,17.5589]
[1723783722245,0.12549,142.4,142.37,24.5825]
[1723783724022,0.12549,142.41,142.37,24.5825]
[1723783724202,0.25098,142.41,142.37,24.5825]
[1723783726314,0.25098,142.41,142.38,7.0233]
[1723783728137,0.25098,142.41,142.37,17.5589]
[1723783728138,33.5826,142.4,142.35,7.0245]
[1723783728446,0.12549,142.39,142.35,7.0245]
[1723783728637,7.27388,142.39,142.34,24.588]
[1723783730331,26.56,142.35,142.28,17.5701]
[1723783730532,0.12549,142.37,142.27,23.2713]
[1723783730533,7.15189,142.32,142.27,23.2713]
[1723783730740,7.15189,142.32,142.28,7.0283]
[1723783732330,0.12549,142.32,142.29,20.0]
[1723783732537,0.12549,142.32,142.28,7.0283]
[1723783734256,0.25098,142.32,142.28,7.0283]
[1723783735543,7.27748,142.32,142.28,7.0283]
[1723783735855,0.12549,142.3,142.27,24.6004]
[1723783736237,0.25098,142.3,142.27,24.6004]
[1723783736771,7.027,142.31,142.27,24.6004]
[1723783736925,7.15199,142.32,142.28,7.0283]
[1723783741592,0.12549,142.3,142.27,24.6004]
[1723783741760,0.12549,142.3,142.23,50.8958]
[1723783741761,0.12549,142.3,142.24,17.5753]
[1723783741963,1.88263362,142.3,142.24,17.5753]
[1723783742158,0.12549,142.29,142.26,7.0292]
[1723783742680,0.12549,142.28,142.24,24.6056]
[1723783742892,8.91123342,142.28,142.24,24.6056]
[1723783743267,7.15389,142.28,142.24,24.6056]
[1723783744393,8.91123071,142.28,142.24,24.6056]
[1723783744597,0.12549,142.27,142.24,24.6056]
[1723783745405,13.1233,142.32,142.24,17.5753]
[1723783745566,13.1285,142.32,142.27,24.6006]
[1723783745899,7.0268,142.32,142.27,24.6006]
[1723783746493,7.0268,142.32,142.27,24.6005]
[1723783747265,7.0269,142.31,142.27,24.6005]
[1723783747465,26.56,142.29,142.21,7.34876787]
[1723783747687,18.37585156,142.3,142.2,7.874955]
[1723783747688,0.12549,142.23,142.2,7.874955]
[1723783747890,26.56,142.24,142.2,7.875155]
[1723783748267,26.56,142.24,142.21,7.0318]
[1723783748805,0.12549,142.24,142.22,7.0313]
[1723783749102,0.12549,142.24,142.2,18.423255]
[1723783749263,0.12549,142.24,142.21,7.0317]
[1723783750681,0.12549,142.25,142.21,7.0317]
[1723783751075,0.12549,142.25,142.22,7.0313]
[1723783752806,7.28078,142.25,142.21,7.0317]
[1723783754380,7.0309,142.23,142.2,18.423255]
[1723783754898,0.12549,142.23,142.2,18.423255]
[1723783755976,0.12549,142.23,142.2,25.455355]
[1723783756175,0.12549,142.24,142.21,7.0318]
[1723783757506,0.12549,142.22,142.2,18.423255]
[1723783757713,0.25098,142.22,142.2,18.423255]
[1723783758488,0.25098,142.22,142.2,0.843055]
[1723783760173,0.12549,142.22,142.2,0.843055]
[1723783760373,0.12549,142.23,142.2,0.843055]
[1723783760612,0.25098,142.23,142.2,0.843055]
[1723783762482,7.28188,142.23,142.2,0.843055]
[1723783763486,0.25098,142.23,142.2,7.875355]
[1723783764904,0.12549,142.21,142.2,0.843055]
[1723783768001,7.15729,142.21,142.2,0.843055]
[1723783768204,7.28278,142.21,142.2,0.843055]
[1723783770530,0.25098,142.21,142.2,0.843055]
[1723783771999,0.12549,142.21,142.2,0.843055]
[1723783776607,0.12549,142.23,142.2,7.875255]
[1723783776943,7.28188,142.23,142.2,0.843055]
[1723783778839,0.12549,142.21,142.2,0.843055]
[1723783779041,0.25098,142.21,142.2,0.843055]
[1723783781329,0.12549,142.21,142.2,0.843055]
[1723783781523,7.0305,142.24,142.2,0.843055]
[1723783781524,0.12549,142.23,142.2,0.843055]
[1723783781837,0.25098,142.23,142.2,0.843055]
[1723783782031,0.25098,142.23,142.2,7.875355]
[1723783785549,0.25098,142.23,142.21,7.0316]
[1723783785726,0.12549,142.24,142.21,7.0316]
[1723783786480,10.77549,142.24,142.21,7.0316]
[1723783787459,10.77549,142.24,142.2,25.455455]
[1723783787669,0.12549,142.23,142.2,25.455455]
[1723783794682,0.12549,142.22,142.2,0.843055]
[1723783796166,10.77549,142.22,142.2,0.843055]
[1723783796759,2.00925913,142.21,142.2,0.843055]
[1723783797759,9.04105913,142.21,142.2,0.843055]
[1723783798977,7.28278,142.21,142.2,0.843055]
[1723783799174,7.28278,142.21,142.11,39.2985]
[1723783799175,7.0353,142.14,142.11,39.2985]
[1723783799390,26.77796,142.21,142.11,39.2985]
[1723783799391,0.12549,142.15,142.11,39.2985]
[1723783799560,7.0334,142.18,142.13,17.589]
[1723783799871,0.25098,142.17,142.13,17.589]
[1723783800692,0.25098,142.17,142.14,7.0353]
[1723783800864,0.25098,142.17,142.13,24.6246]
[1723783802154,7.28488,142.17,142.13,24.6246]
[1723783802359,0.12549,142.15,142.13,17.589]
[1723783802655,0.12549,142.15,142.13,24.6247]
[1723783802876,0.12549,142.15,142.13,17.589]
[1723783803186,0.12549,142.15,142.11,15.1584]
[1723783803187,0.12549,142.13,142.11,15.1584]
[1723783803406,0.12549,142.13,142.1,17.5923]
[1723783803560,0.25098,142.13,142.1,17.5923]
[1723783804760,0.25098,142.13,142.1,24.6295]
[1723783805177,7.28678,142.13,142.09,7.0377]
[1723783805382,0.25098,142.13,142.09,7.0377]
[1723783805784,0.25098,142.13,142.09,27.0377]
[1723783806176,0.25098,142.13,142.09,7.0377]
[1723783807005,0.12549,142.11,142.08,16.4378]
[1723783807195,0.12549,142.11,142.08,23.4759]
[1723783807398,0.25098,142.11,142.08,23.4759]
[1723783807711,10.65,142.1,142.07,24.6347]
[1723783807917,0.12549,142.06,142.05,0.843055]
[1723783808577,7.16469,142.06,142.05,0.843055]
[1723783808797,7.29018,142.06,142.05,0.843055]
[1723783809980,17.94018,142.06,142.05,0.843055]
[1723783813317,0.12549,142.06,142.05,0.843055]
[1723783813490,17.6886,142.08,142.05,0.843055]
[1723783813890,7.0389,142.07,142.05,0.843055]
[1723783814402,17.6892,142.06,142.05,0.843055]
[1723783814594,17.81469,142.06,142.05,0.843055]
[1723783814801,17.94018,142.06,142.05,0.843055]
[1723783820590,37.94018,142.06,142.05,0.843055]
[1723783823491,38.19116,142.06,142.05,0.843055]
[1723783824327,38.06567,142.06,142.05,0.843055]
[1723783824500,38.19116,142.06,142.05,0.843055]
[1723783825095,27.41567,142.06,142.05,0.843055]
[1723783825299,27.16469,142.06,142.05,0.843055]
[1723783825609,24.6141,142.11,142.05,0.843055]
[1723783825812,7.0383,142.08,142.05,0.843055]
[1723783826399,7.0387,142.07,142.05,0.843055]
[1723783827334,0.25098,142.06,142.05,0.843055]
[1723783828715,7.29018,142.06,142.05,0.843055]
[1723783828924,9.05020508,142.06,142.05,0.843055]
[1723783829343,7.29018,142.06,142.05,0.843055]
[1723783830135,17.94018,142.06,142.05,0.843055]
[1723783830320,38.06567,142.06,142.05,0.843055]
[1723783831634,37.94018,142.06,142.05,0.843055]
[1723783833749,38.06567,142.06,142.05,0.843055]
[1723783834558,83.19116,142.06,142.05,0.843055]
[1723783834938,38.19116,142.06,142.05,0.843055]
[1723783835746,83.19116,142.06,142.05,0.843055]
[1723783836265,27.54116,142.06,142.05,0.843055]
[1723783836565,38.19116,142.06,142.05,0.843055]
[1723783837139,27.0392,142.06,142.05,0.843055]
[1723783838561,27.16469,142.06,142.05,0.843055]
[1723783838765,27.54116,142.06,142.05,0.843055]
[1723783840753,27.0392,142.06,142.05,0.843055]
[1723783841380,17.5882,142.14,142.05,0.843055]
[1723783841537,10.65,142.13,142.06,7.0391]
[1723783842155,7.0376,142.1,142.05,25.481955]
[1723783842475,17.5911,142.12,142.05,0.843055]
[1723783842853,20.0,142.11,142.05,0.843055]
[1723783843161,7.0374,142.1,142.06,7.0392]
[1723783843367,7.16329,142.09,142.05,7.882655]
[1723783843746,0.12549,142.08,142.05,7.882655]
[1723783844774,0.12549,142.08,142.05,0.843055]
[1723783845352,0.12549,142.08,142.05,7.882755]
[1723783846848,0.12549,142.08,142.05,8.29588386]
[1723783848584,0.12549,142.08,142.05,7.882755]
[1723783851402,0.12549,142.09,142.05,0.843055]
[1723783851786,0.12549,142.08,142.05,7.882455]
[1723783857680,20.0,142.11,142.06,7.0392]
[1723783857681,7.0374,142.1,142.06,7.0392]
[1723783857880,0.12549,142.09,142.06,7.0392]
[1723783858492,10.712845,142.16,142.08,21.8186]
[1723783858717,7.0343,142.16,142.1,17.5929]
[1723783859018,7.0343,142.16,142.11,0.41141731]
[1723783859176,7.0341,142.17,142.12,7.0358]
[1723783859519,16.7357,142.2,142.11,7.0366]
[1723783859879,7.0348,142.15,142.11,7.0366]
[1723783860271,0.12549,142.14,142.11,7.0366]
[1723783861414,0.12549,142.14,142.1,24.63]
[1723783861712,0.12549,142.14,142.11,7.0367]
[1723783861893,0.25098,142.15,142.12,0.41127424]
[1723783862101,0.25098,142.15,142.12,7.44737424]
[1723783862318,7.0339,142.17,142.13,7.0357]
[1723783862821,7.0343,142.16,142.12,7.0361]
[1723783864512,7.0343,142.16,142.11,7.0366]
[1723783864513,0.12549,142.15,142.11,7.0366]
[1723783865089,7.0343,142.16,142.12,7.0361]
[1723783865328,7.0343,142.16,142.12,27.0361]
[1723783865499,7.15949,142.17,142.12,27.0361]
[1723783866630,0.12549,142.17,142.11,17.6867]
[1723783866831,0.12549,142.17,142.11,7.0367]
[1723783867728,0.12549,142.15,142.11,7.0367]
[1723783868941,7.0344,142.16,142.12,7.0362]
[1723783870737,0.12549,142.16,142.13,7.0357]
[1723783871321,0.12549,142.16,142.12,24.6264]
[1723783872106,10.90098,142.18,142.11,7.0366]
[1723783872313,0.12549,142.16,142.11,7.0366]
[1723783872512,0.25098,142.16,142.11,7.0366]
[1723783873244,7.0349,142.15,142.11,7.0366]
[1723783874039,0.25098,142.16,142.12,7.0362]
[1723783874232,0.12549,142.16,142.12,7.0362]
[1723783874416,28.2312,142.2,142.13,7.0354]
[1723783874417,7.0334,142.18,142.13,7.0354]
[1723783874624,7.0334,142.18,142.14,22.4639]
[1723783874814,7.0334,142.18,142.15,0.41044159]
[1723783875022,7.0334,142.18,142.15,0.4105066]
[1723783875232,7.0334,142.18,142.14,15.4287]
[1723783876046,7.0334,142.18,142.14,22.4636]
[1723783876344,7.0335,142.18,142.14,15.4287]
[1723783876727,0.12549,142.17,142.14,15.4287]
[1723783877041,0.12549,142.17,142.14,22.4639]
[1723783878218,7.0335,142.18,142.14,22.4639]
[1723783879222,0.12549,142.19,142.16,27.0341]
[1723783879440,0.12549,142.19,142.17,0.40971983]
[1723783879745,0.12549,142.19,142.16,27.0341]
[1723783880118,7.15839,142.19,142.15,24.6211]
[1723783881245,0.12549,142.19,142.15,24.6211]
[1723783882354,10.65,142.24,142.17,37.5843]
[1723783882560,20.0,142.23,142.17,17.5843]
[1723783882721,7.0319,142.21,142.17,24.6179]
[1723783883048,7.0319,142.21,142.17,17.5843]
[1723783883433,7.0324,142.2,142.17,17.5843]
[1723783883638,0.12549,142.19,142.15,10.65]
[1723783883949,7.15899,142.18,142.14,40.0518]
[1723783884162,0.12549,142.16,142.14,33.0167]
[1723783884516,0.12549,142.17,142.14,40.0519]
[1723783884819,0.12549,142.18,142.14,40.0519]
[1723783885564,0.12549,142.18,142.14,40.0516]
[1723783887531,7.15879,142.18,142.14,40.0516]
[1723783888658,0.12549,142.19,142.15,7.0346]
[1723783888850,0.25098,142.19,142.15,7.0346]
[1723783889054,7.28388,142.19,142.15,7.0346]
[1723783896955,0.25098,142.19,142.16,7.0341]
[1723783897267,0.12549,142.19,142.16,7.0341]
[1723783899658,7.0319,142.21,142.17,7.0334]
[1723783901057,0.12549,142.2,142.17,7.0334]
[1723783901676,0.12549,142.2,142.16,24.6197]
[1723783902360,7.15779,142.2,142.16,24.6197]
[1723783904239,0.12549,142.22,142.15,7.0345]
[1723783904240,0.12549,142.18,142.15,7.0345]
[1723783904438,0.12549,142.18,142.14,7.0351]
[1723783904439,7.15879,142.18,142.14,7.0351]
[1723783905046,0.12549,142.18,142.14,7.0351]
[1723783905664,7.033,142.19,142.15,7.0345]
[1723783906469,7.15799,142.2,142.15,7.0345]
[1723783906747,20.0,142.23,142.19,7.0324]
[1723783906967,7.0216,142.26,142.19,17.5818]
[1723783907273,7.0216,142.26,142.19,20.0]
[1723783907499,7.0304,142.24,142.2,7.0322]
[1723783907846,7.0304,142.24,142.19,27.0326]
[1723783908046,7.0304,142.24,142.19,7.0326]
[1723783908485,7.15679,142.22,142.18,35.2657]
[1723783908673,0.12549,142.21,142.18,28.2325]
[1723783908869,7.031,142.23,142.18,28.2325]
[1723783909972,17.6716,142.26,142.2,7.0322]
[1723783910276,17.6716,142.26,142.18,28.2325]
[1723783910277,7.0304,142.24,142.19,7.0326]
[1723783910497,7.0304,142.24,142.19,27.0326]
[1723783910792,0.12549,142.23,142.19,7.0326]
[1723783910959,0.12549,142.23,142.19,27.0326]
[1723783911574,0.12549,142.23,142.19,7.0326]
[1723783912476,0.12549,142.23,142.19,27.0326]
[1723783912677,0.12549,142.23,142.19,7.0326]
[1723783913077,0.12549,142.23,142.19,27.0326]
[1723783913288,0.12549,142.23,142.19,7.0326]
[1723783914398,7.0308,142.23,142.19,7.0326]
[1723783915264,7.0308,142.23,142.19,27.0326]
[1723783916094,7.0308,142.23,142.19,7.0326]
[1723783916495,7.0308,142.23,142.19,27.0326]
[1723783916903,7.0294,142.26,142.22,7.0312]
[1723783917204,7.029,142.27,142.22,7.0312]
[1723783917581,7.0293,142.26,142.22,7.0312]
[1723783918092,7.029,142.27,142.22,7.0312]
[1723783918304,6.6596,142.3,142.24,10.65]
[1723783918595,7.0277,142.3,142.26,7.0293]
[1723783918805,7.0267,142.32,142.26,11.05711523]
[1723783918966,13.5866,142.33,142.26,17.573]
[1723783918967,7.0269,142.31,142.26,17.573]
[1723783919170,24.2366,142.33,142.26,17.573]
[1723783919792,24.2366,142.33,142.24,10.65]
[1723783919793,7.0282,142.29,142.25,7.0295]
[1723783919999,7.0275,142.3,142.26,7.0292]
[1723783920491,7.0279,142.29,142.25,17.5743]
[1723783920799,7.0279,142.29,142.25,24.6041]
[1723783921515,0.12549,142.29,142.25,44.6041]
[1723783923377,0.12549,142.29,142.25,24.6041]
[1723783924080,0.12549,142.29,142.26,7.0293]
[1723783924388,0.12549,142.27,142.24,7.03]
[1723783924591,0.12549,142.29,142.24,7.03]
[1723783924889,7.15349,142.29,142.24,7.03]
[1723783925080,0.12549,142.28,142.24,7.03]
[1723783925281,0.12549,142.28,142.25,27.0297]
[1723783925487,0.12549,142.3,142.25,30.65]
[1723783925695,0.12549,142.3,142.26,7.0292]
[1723783925696,7.15309,142.3,142.26,7.0292]
[1723783925901,0.12549,142.29,142.26,7.0292]
[1723783926278,7.15309,142.3,142.26,17.5731]
[1723783926279,0.12549,142.3,142.26,17.5731]
[1723783926476,7.27818,142.31,142.26,17.5731]
[1723783926888,7.27818,142.31,142.26,24.6023]
[1723783927404,7.27818,142.31,142.26,44.6023]
[1723783929280,7.0274,142.3,142.26,44.6023]
[1723783929481,7.0274,142.3,142.26,24.6023]
[1723783931096,6.565,142.33,142.27,20.0]
[1723783931995,7.0265,142.32,142.28,7.0282]
[1723783932617,6.81598,142.33,142.27,20.0]
[1723783932782,24.582,142.37,142.3,7.027]
[1723783932783,41.6899,142.37,142.3,7.027]
[1723783933000,7.0257,142.34,142.3,7.027]
[1723783933200,41.6899,142.37,142.27,15.7334]
[1723783933201,7.0277,142.3,142.27,15.7334]
[1723783933406,7.027,142.31,142.27,15.7334]
[1723783933640,7.027,142.31,142.27,22.7621]
[1723783934434,7.027,142.31,142.28,7.0282]
[1723783934435,0.12549,142.31,142.28,7.0282]
[1723783934639,7.0264,142.32,142.28,7.0282]
[1723783935816,7.0261,142.33,142.28,7.0282]
[1723783936122,0.12549,142.32,142.28,7.0282]
[1723783936513,0.12549,142.32,142.29,7.0278]
[1723783938148,7.15189,142.32,142.28,7.0282]
[1723783938814,7.027,142.31,142.27,40.334]
[1723783939002,0.12549,142.3,142.27,40.334]